bitfinex/quotes_SOLUSD_20250123
["timestamp","ask_amount","ask_price","bid_price","bid_amount"]
[1737669268501,6.3264,246.2,246.02,4.1277]
[1737669268701,23.776884,246.19,246.02,4.1277]
[1737669269805,6.3264,246.18,246.02,4.1277]
[1737669270012,6.3264,246.18,246.02,14.2894]
[1737669270831,23.776884,246.17,246.02,4.1277]
[1737669271004,6.3264,246.18,246.02,4.1277]
[1737669271204,6.3264,246.18,246.02,14.2894]
[1737669271505,6.3264,246.18,246.03,23.776884]
[1737669271730,6.3264,246.18,246.02,0.063]
[1737669272021,6.3264,246.18,246.04,14.2252]
[1737669274132,6.3264,246.18,246.06,14.2241]
[1737669275235,6.3264,246.18,246.06,10.1601]
[1737669276823,6.3264,246.18,246.07,23.776884]
[1737669277336,6.3264,246.18,246.05,4.0642]
[1737669277919,6.3264,246.18,246.06,23.776884]
[1737669278651,6.3264,246.18,246.07,4.0638]
[1737669279619,6.3264,246.18,246.02,0.063]
[1737669279821,6.3264,246.18,246.04,23.776884]
[1737669280815,6.3264,246.18,246.06,23.776884]
[1737669281719,6.5458,246.24,246.06,23.776884]
[1737669281936,1.5901,246.26,246.06,33.60457633]
[1737669282135,1.5901,246.26,246.08,23.776884]
[1737669282941,1.5901,246.26,246.1,23.776884]
[1737669283521,1.5901,246.26,246.13,23.776884]
[1737669284246,1.5901,246.26,246.15,23.776884]
[1737669284933,6.5458,246.3,246.15,23.776884]
[1737669285127,0.03,246.32,246.15,23.776884]
[1737669285746,0.03,246.32,246.17,23.776884]
[1737669286945,0.03,246.32,246.19,23.776884]
[1737669287122,0.03,246.32,246.19,335.776884]
[1737669288647,0.03,246.32,246.21,23.776884]
[1737669289831,0.03,246.35,246.21,23.776884]
[1737669290031,0.03,246.35,246.21,24.776884]
[1737669290328,0.03,246.35,246.21,60.01862069]
[1737669290525,0.03,246.35,246.23,23.776884]
[1737669291648,0.03,246.35,246.25,23.776884]
[1737669292551,0.03,246.35,246.25,335.776884]
[1737669293051,0.03,246.35,246.27,23.776884]
[1737669293842,0.03,246.35,246.26,14.2125]
[1737669294852,0.03,246.35,246.27,23.776884]
[1737669295161,0.03,246.35,246.28,14.2114]
[1737669295329,0.03,246.35,246.29,23.776884]
[1737669295532,1.6646,246.39,246.29,23.776884]
[1737669295734,6.3514,246.43,246.29,23.776884]
[1737669296752,6.3514,246.43,246.29,335.776884]
[1737669296958,6.3514,246.43,246.31,23.776884]
[1737669297552,0.03,246.43,246.31,23.776884]
[1737669297966,0.03,246.43,246.33,23.776884]
[1737669299956,0.03,246.43,246.35,23.776884]
[1737669300160,0.03,246.43,246.32,4.0597]
[1737669300740,6.2405,246.42,246.32,4.0597]
[1737669300955,1.5017,246.41,246.26,4.0607]
[1737669301159,1.5017,246.41,246.21,10.1538]
[1737669301160,6.2405,246.39,246.21,10.1538]
[1737669301345,6.2405,246.39,246.22,23.776884]
[1737669302062,6.2405,246.39,246.24,23.776884]
[1737669302564,6.2405,246.39,246.23,4.0612]
[1737669303067,1.602,246.38,246.23,4.0612]
[1737669303562,1.602,246.38,246.24,23.776884]
[1737669304067,1.602,246.38,246.16,14.2182]
[1737669304655,1.602,246.38,246.17,23.776884]
[1737669304864,6.4191,246.37,246.17,23.776884]
[1737669305050,1.0,246.41,246.16,14.2182]
[1737669305051,6.4191,246.35,246.16,14.2182]
[1737669305562,6.4191,246.35,246.17,23.776884]
[1737669306151,6.4191,246.35,246.18,4.062]
[1737669306548,6.4191,246.35,246.19,23.776884]
[1737669306751,6.4191,246.35,246.24,0.063]
[1737669308264,6.2443,246.41,246.26,23.776884]
[1737669309258,6.2443,246.41,246.27,14.2119]
[1737669309566,6.2443,246.41,246.28,23.776884]
[1737669309970,0.03,246.43,246.28,25.353084]
[1737669310471,0.03,246.43,246.29,14.2108]
[1737669311277,1.5231,246.41,246.29,4.0602]
[1737669312980,1.5231,246.41,246.28,14.2114]
[1737669313170,1.5231,246.41,246.29,23.776884]
[1737669314274,1.5231,246.41,246.31,23.776884]
[1737669315361,1.5231,246.41,246.33,23.776884]
[1737669316775,1.5231,246.41,246.35,23.776884]
[1737669317677,0.03,246.43,246.35,23.776884]
[1737669317983,0.03,246.45,246.35,23.776884]
[1737669318159,0.0001,246.44,246.35,23.776884]
[1737669318764,0.0001,246.44,246.37,23.776884]
[1737669320166,0.0001,246.44,246.39,23.776884]
[1737669320988,6.0309,246.57,246.39,23.776884]
[1737669322260,6.0309,246.57,246.41,23.776884]
[1737669323384,1.51,246.53,246.37,4.0589]
[1737669323580,6.5496,246.52,246.37,4.0589]
[1737669324081,6.5496,246.52,246.38,23.776884]
[1737669324284,6.5496,246.52,246.39,4.0586]
[1737669324585,6.5496,246.52,246.34,4.0594]
[1737669324763,24.776884,246.51,246.34,4.0594]
[1737669325095,23.776884,246.47,246.25,14.2131]
[1737669325568,24.776884,246.47,246.26,23.776884]
[1737669325966,23.776884,246.47,246.25,15.8134079]
[1737669326274,23.776884,246.43,246.25,4.0609]
[1737669326465,23.776884,246.41,246.25,4.0609]
[1737669326666,6.4314,246.4,246.25,4.0609]
[1737669327783,6.4314,246.4,246.26,23.776884]
[1737669329491,6.4314,246.4,246.27,4.0605]
[1737669330589,6.4314,246.4,246.28,23.776884]
[1737669331792,6.4314,246.4,246.29,14.2108]
[1737669331968,1.6352,246.46,246.3,23.776884]
[1737669333201,1.6352,246.46,246.32,23.776884]
[1737669334198,1.6352,246.46,246.34,23.776884]
[1737669334972,6.4809,246.47,246.34,335.776884]
[1737669335485,6.4809,246.47,246.35,34.5036]
[1737669335794,1.5246,246.53,246.35,34.5036]
[1737669335795,7.568,246.53,246.36,23.776884]
[1737669337396,7.568,246.53,246.32,23.776884]
[1737669337707,7.568,246.53,246.38,23.776884]
[1737669338677,7.568,246.53,246.42,23.776884]
[1737669339085,7.568,246.53,246.43,14.2027]
[1737669339779,7.568,246.53,246.44,23.776884]
[1737669340179,7.568,246.53,246.46,23.776884]
[1737669341102,6.0434,246.53,246.48,23.776884]
[1737669341304,6.0434,246.53,246.31,0.063]
[1737669341305,1.5967,246.4,246.31,0.063]
[1737669342193,6.2951,246.46,246.31,4.1228]
[1737669342780,6.6865,246.54,246.31,14.2726]
[1737669343398,6.6865,246.54,246.32,23.776884]
[1737669343706,6.6865,246.54,246.32,25.776884]
[1737669344402,6.6865,246.54,246.34,23.776884]
[1737669344605,6.6865,246.54,246.34,25.776884]
[1737669345304,6.6865,246.54,246.31,1.063]
[1737669345488,6.6865,246.54,246.36,23.776884]
[1737669345686,6.6865,246.54,246.4,23.776884]
[1737669346205,6.6865,246.54,246.36,23.776884]
[1737669346401,6.6865,246.54,246.38,23.776884]
[1737669347282,6.6865,246.54,246.34,23.776884]
[1737669347484,6.6865,246.54,246.34,37.984784]
[1737669348381,6.6865,246.54,246.34,58.281884]
[1737669349086,6.6865,246.54,246.39,23.776884]
[1737669349604,6.6865,246.54,246.34,34.505]
[1737669349605,6.6865,246.54,246.34,20.2971]
[1737669349805,6.6865,246.54,246.36,23.776884]
[1737669350911,6.6865,246.54,246.38,23.776884]
[1737669350912,0.03,246.54,246.38,23.776884]
[1737669351911,0.03,246.54,246.4,23.776884]
[1737669352581,0.03,246.54,246.41,312.0]
[1737669353016,0.03,246.54,246.43,23.776884]
[1737669354098,0.03,246.54,246.44,14.2021]
[1737669355327,0.03,246.54,246.4,23.776884]
[1737669355706,0.03,246.54,246.4,1.65365864]
[1737669355910,0.03,246.54,246.35,14.2073]
[1737669356519,0.03,246.54,246.36,23.776884]
[1737669357813,0.03,246.54,246.37,14.2062]
[1737669360027,0.03,246.54,246.4,23.776884]
[1737669360913,0.03,246.54,246.39,10.1465]
[1737669361101,6.0275,246.52,246.39,10.1465]
[1737669364237,7.0302,246.5,246.35,5.69596444]
[1737669364528,1.0,246.47,246.34,0.063]
[1737669364699,25.288484,246.44,246.34,0.063]
[1737669364898,23.776884,246.42,246.34,0.063]
[1737669365208,23.776884,246.4,246.28,4.0603]
[1737669365534,23.776884,246.4,246.24,0.063]
[1737669366021,23.776884,246.4,246.36,0.063]
[1737669366817,23.776884,246.4,246.31,0.063]
[1737669367127,23.776884,246.38,246.24,0.063]
[1737669367338,23.776884,246.38,246.24,4.124]
[1737669367735,24.776884,246.38,246.24,0.063]
[1737669368043,23.776884,246.32,246.24,0.063]
[1737669368729,1.5101,246.33,246.24,4.124]
[1737669369520,23.776884,246.32,246.24,0.063]
[1737669371812,6.2153,246.31,246.24,0.063]
[1737669375146,6.2153,246.31,246.24,4.1239]
[1737669376950,6.2153,246.31,246.24,0.063]
[1737669377148,23.776884,246.3,246.24,0.063]
[1737669379331,0.5587,246.25,246.15,0.063]
[1737669379525,6.0634,246.23,246.15,0.063]
[1737669379830,23.776884,246.22,246.15,0.063]
[1737669381357,23.776884,246.18,246.15,0.063]
[1737669381529,23.776884,246.18,246.09,0.063]
[1737669381950,23.776884,246.16,246.09,0.063]
[1737669382378,7.0634,246.23,246.09,0.063]
[1737669382569,6.0634,246.23,246.09,4.1264]
[1737669382954,23.776884,246.22,246.09,4.1264]
[1737669383365,23.776884,246.22,246.11,4.126]
[1737669385980,7.5829,246.41,246.12,23.776884]
[1737669386159,1.0,246.39,246.12,23.776884]
[1737669387168,2.0,246.39,246.13,14.22]
[1737669387380,7.5829,246.41,246.14,23.776884]
[1737669387685,6.5829,246.41,246.14,23.776884]
[1737669388183,23.776884,246.4,246.14,23.776884]
[1737669388381,1.0,246.32,246.13,4.0628]
[1737669388576,23.776884,246.31,246.13,4.0628]
[1737669388751,1.0,246.34,246.13,4.0628]
[1737669389149,1.0,246.37,246.13,4.0628]
[1737669389562,23.776884,246.36,246.13,4.0628]
[1737669389980,1.03,246.39,246.13,4.0628]
[1737669390186,23.776884,246.38,246.13,14.22]
[1737669391078,0.03,246.39,246.14,23.776884]
[1737669391302,0.03,246.39,246.15,10.1564]
[1737669391595,23.776884,246.36,246.13,4.0628]
[1737669391771,1.0,246.35,246.13,4.0628]
[1737669392802,23.776884,246.36,246.13,14.22]
[1737669393100,0.03,246.39,246.13,14.22]
[1737669393299,23.776884,246.38,246.13,14.22]
[1737669393474,1.03,246.39,246.13,14.22]
[1737669393900,23.776884,246.38,246.13,14.22]
[1737669394096,0.03,246.39,246.16,23.776884]
[1737669394277,0.03,246.39,246.15,10.1564]
[1737669394483,0.03,246.39,246.16,7.7115]
[1737669394876,0.03,246.39,246.17,23.776884]
[1737669395309,0.03,246.39,246.18,14.2171]
[1737669396194,1.0,246.37,246.18,4.062]
[1737669396400,23.776884,246.36,246.13,4.0628]
[1737669396885,1.0,246.32,246.13,4.0628]
[1737669397087,1.0,246.3,246.12,0.063]
[1737669397315,23.776884,246.26,246.12,0.063]
[1737669398214,1.0,246.24,246.12,0.063]
[1737669398389,23.776884,246.23,246.12,0.063]
[1737669398586,23.776884,246.21,246.12,0.063]
[1737669400602,1.542,246.31,246.13,4.0628]
[1737669400795,6.4228,246.3,246.13,4.0628]
[1737669401207,6.4228,246.3,246.13,14.22]
[1737669401423,23.776884,246.29,246.13,4.0628]
[1737669401720,6.4228,246.3,246.13,4.0628]
[1737669402091,23.776884,246.29,246.13,4.0628]
[1737669402286,23.776884,246.29,246.13,4.1258]
[1737669403113,23.776884,246.29,246.13,14.283]
[1737669404990,6.3758,246.36,246.13,14.283]
[1737669405189,7.3758,246.36,246.13,14.283]
[1737669405396,23.776884,246.35,246.13,14.283]
[1737669406321,6.3758,246.36,246.13,14.283]
[1737669407597,23.776884,246.35,246.13,14.283]
[1737669407800,6.3758,246.36,246.15,14.2189]
[1737669407801,0.03,246.36,246.15,14.2189]
[1737669408013,0.03,246.36,246.17,1.6024]
[1737669408189,0.03,246.36,246.2,23.776884]
[1737669408397,0.03,246.36,246.22,23.776884]
[1737669408908,0.03,246.36,246.21,1.6024]
[1737669409295,0.03,246.36,246.22,14.2149]
[1737669411611,0.03,246.36,246.22,37.991784]
[1737669412121,0.03,246.36,246.25,23.776884]
[1737669412920,0.03,246.36,246.26,10.1518]
[1737669416225,0.03,246.36,246.28,6.1534]
[1737669417328,0.03,246.36,246.29,4.0602]
[1737669417937,0.03,246.36,246.28,10.2137]
[1737669418434,0.03,246.36,246.28,6.1534]
[1737669418631,0.03,246.36,246.23,6.4529]
[1737669418810,0.03,246.36,246.25,4.0608]
[1737669420443,0.03,246.36,246.23,6.4529]
[1737669420614,6.6761,246.36,246.19,4.0618]
[1737669421044,23.776884,246.35,246.19,4.0618]
[1737669423417,25.776884,246.35,246.17,6.5986]
[1737669423723,25.776884,246.35,246.15,1.5061]
[1737669423923,25.776884,246.35,246.15,5.5685]
[1737669424423,23.776884,246.35,246.15,5.5685]
[1737669425429,23.776884,246.35,246.15,5.6315]
[1737669428855,23.776884,246.35,246.15,4.1254]
[1737669431042,23.776884,246.32,246.15,0.063]
[1737669431367,23.776884,246.27,246.15,0.063]
[1737669431663,6.6077,246.23,246.15,0.063]
[1737669431957,23.776884,246.22,246.15,0.063]
[1737669433158,6.6077,246.23,246.15,0.063]
[1737669433747,23.776884,246.22,246.15,0.063]
[1737669441141,6.6077,246.23,246.15,0.063]
[1737669441343,1.5069,246.28,246.15,4.1255]
[1737669441768,23.776884,246.27,246.15,4.1255]
[1737669442160,23.776884,246.27,246.15,0.063]
[1737669443445,23.776884,246.27,246.16,4.0623]
[1737669443650,1.5069,246.28,246.16,4.0623]
[1737669443872,6.0579,246.29,246.16,4.0623]
[1737669444969,23.776884,246.28,246.16,4.0623]
[1737669445170,1.6001,246.34,246.16,4.0623]
[1737669445474,1.6001,246.34,246.17,1.649]
[1737669445771,23.776884,246.33,246.17,1.649]
[1737669445943,1.6001,246.34,246.17,1.649]
[1737669446146,6.0579,246.35,246.17,1.649]
[1737669447072,0.03,246.36,246.18,23.776884]
[1737669447261,0.03,246.36,246.2,23.776884]
[1737669448159,0.03,246.36,246.22,23.776884]
[1737669448356,0.03,246.36,246.26,23.776884]
[1737669448574,0.03,246.36,246.28,1.5469]
[1737669448959,0.03,246.36,246.29,23.776884]
[1737669449575,0.03,246.36,246.3,14.2102]
[1737669450454,0.03,246.39,246.33,23.776884]
[1737669450668,0.0001,246.39,246.33,23.776884]
[1737669450957,0.0001,246.39,246.34,7.7063]
[1737669451379,0.03,246.53,246.37,23.776884]
[1737669451765,0.03,246.53,246.36,14.2068]
[1737669452466,0.03,246.53,246.37,23.776884]
[1737669453378,0.03,246.53,246.39,23.776884]
[1737669454178,0.03,246.53,246.38,14.2056]
[1737669459666,0.03,246.53,246.38,4.0587]
[1737669462991,0.03,246.53,246.39,23.776884]
[1737669463791,0.03,246.53,246.4,10.1461]
[1737669464579,0.03,246.53,246.41,7.7203]
[1737669465018,0.03,246.53,246.41,8.7203]
[1737669465301,0.03,246.54,246.45,23.776884]
[1737669465892,0.03,246.54,246.47,23.776884]
[1737669466490,0.03,246.6,246.5,6.3675]
[1737669466910,0.03,246.6,246.51,23.776884]
[1737669467879,0.03,246.6,246.53,23.776884]
[1737669468306,0.03,246.64,246.53,23.776884]
[1737669469306,0.03,246.64,246.55,23.776884]
[1737669470005,1.6104,246.8,246.57,24.776884]
[1737669470181,6.2651,246.84,246.57,24.776884]
[1737669470182,6.2651,246.84,246.58,6.0042]
[1737669470809,6.2651,246.84,246.59,23.776884]
[1737669471011,6.64,246.97,246.68,1.0]
[1737669471197,6.64,246.97,246.68,2.0]
[1737669471385,6.64,246.97,246.69,23.776884]
[1737669471696,23.776884,246.96,246.69,23.776884]
[1737669472105,6.64,246.97,246.71,23.776884]
[1737669472692,23.776884,246.96,246.71,23.776884]
[1737669473196,6.64,246.97,246.72,14.186]
[1737669473813,23.776884,246.96,246.72,14.186]
[1737669474012,23.776884,246.96,246.73,23.776884]
[1737669474217,23.776884,246.96,246.74,14.1849]
[1737669474523,6.64,246.97,246.74,14.1849]
[1737669474991,6.64,246.97,246.75,25.365584]
[1737669475191,6.64,246.97,246.77,23.776884]
[1737669475393,1.0,247.08,246.77,23.776884]
[1737669475612,8.1547,247.06,246.79,23.776884]
[1737669475821,0.03,246.97,246.79,23.776884]
[1737669476515,0.03,246.97,246.8,20.48338464]
[1737669476815,0.03,246.97,246.82,20.85398666]
[1737669477420,0.03,246.97,246.84,20.01806902]
[1737669477722,0.03,246.97,246.86,20.33120559]
[1737669478813,0.03,246.97,246.8,24.53518464]
[1737669480217,0.03,246.97,246.79,20.0838484]
[1737669480793,23.776884,246.93,246.74,20.54342049]
[1737669481402,23.776884,246.93,246.76,20.83201244]
[1737669481624,6.6148,246.95,246.76,20.83201244]
[1737669482303,0.03,246.97,246.76,20.83201244]
[1737669482495,0.03,246.97,246.77,25.372384]
[1737669482695,0.03,246.97,246.8,20.48338464]
[1737669483025,0.03,246.97,246.78,20.52260513]
[1737669483318,1.0,246.93,246.74,20.54342049]
[1737669483520,8.9518,246.96,246.7,20.58215885]
[1737669483753,7.9518,246.96,246.71,20.96863938]
[1737669484022,7.9518,246.96,246.71,44.74552338]
[1737669484525,23.776884,246.95,246.71,20.96863938]
[1737669484699,23.776884,246.95,246.7,44.35904285]
[1737669484899,23.776884,246.95,246.72,20.73519742]
[1737669486127,23.776884,246.9,246.7,20.58215885]
[1737669486306,23.776884,246.88,246.67,20.25534856]
[1737669486504,23.776884,246.88,246.66,6.2208]
[1737669486820,23.776884,246.88,246.66,10.2749]
[1737669487396,23.776884,246.88,246.66,6.2208]
[1737669487607,23.776884,246.86,246.64,4.0544]
[1737669487806,23.776884,246.84,246.62,7.28086858]
[1737669488032,23.776884,246.84,246.62,1.5824]
[1737669488520,24.776884,246.84,246.62,1.5824]
[1737669488934,24.776884,246.82,246.56,1.5403]
[1737669489419,23.776884,246.8,246.56,1.5403]
[1737669490014,23.776884,246.8,246.57,4.0556]
[1737669490535,24.776884,246.8,246.57,4.0556]
[1737669490837,1.5151,246.85,246.53,4.0561]
[1737669490838,23.776884,246.76,246.53,4.0561]
[1737669491639,7.1445,246.79,246.51,23.776884]
[1737669491815,23.776884,246.78,246.51,37.974984]
[1737669492324,4.19825213,246.9,246.6,20.02980329]
[1737669492625,4.19825213,246.9,246.62,20.12751505]
[1737669493013,11.25825213,246.9,246.64,20.83407309]
[1737669493429,7.06,246.9,246.64,20.83407309]
[1737669493628,7.06,246.9,246.64,21.83407309]
[1737669494617,23.776884,246.89,246.64,20.83407309]
[1737669495341,7.06,246.9,246.65,23.776884]
[1737669495518,7.06,246.9,246.67,23.776884]
[1737669495723,7.06,246.9,246.68,20.44067774]
[1737669498037,12.19,246.87,246.68,20.44067774]
[1737669498239,12.19,246.89,246.71,23.776884]
[1737669498816,12.19,246.89,246.74,20.91731629]
[1737669499136,12.19,246.86,246.63,20.48080592]
[1737669499611,12.19,246.86,246.63,20.54380592]
[1737669500037,0.03,246.89,246.63,20.54380592]
[1737669500236,12.19,246.86,246.63,20.54380592]
[1737669500422,12.19,246.83,246.63,0.063]
[1737669500940,0.83064504,246.82,246.63,0.063]
[1737669501323,23.776884,246.81,246.63,0.063]
[1737669501659,12.19,246.76,246.63,0.063]
[1737669502017,0.83064504,246.75,246.63,0.063]
[1737669502545,23.776884,246.74,246.63,0.063]
[1737669502758,12.19,246.73,246.63,0.063]
[1737669503660,12.19,246.74,246.63,0.063]
[1737669504851,12.19,246.73,246.63,0.063]
[1737669505830,12.19,246.71,246.63,0.063]
[1737669507252,12.19,246.69,246.63,0.063]
[1737669507452,12.19,246.67,246.63,0.063]
[1737669509955,12.19,246.61,246.4,1.5532]
[1737669510356,12.19,246.61,246.39,0.063]
[1737669510730,12.19,246.59,246.39,0.063]
[1737669511757,12.19,246.59,246.39,23.839884]
[1737669511936,12.19,246.58,246.39,23.839884]
[1737669513059,12.19,246.63,246.39,23.839884]
[1737669513957,16.25,246.64,246.39,23.839884]
[1737669515963,16.25,246.64,246.41,23.839884]
[1737669516156,16.25,246.64,246.43,24.776884]
[1737669516557,16.25,246.64,246.45,23.776884]
[1737669517058,0.03,246.89,246.45,23.776884]
[1737669517059,12.19,246.63,246.45,23.776884]
[1737669517462,20.0,246.6,246.45,23.776884]
[1737669518445,32.19,246.6,246.45,23.776884]
[1737669518646,12.19,246.65,246.45,23.776884]
[1737669519458,32.19,246.6,246.44,0.424684]
[1737669520744,8.2631,246.69,246.44,0.424684]
[1737669520745,32.19,246.65,246.44,0.424684]
[1737669521069,12.19,246.65,246.46,1.0]
[1737669521306,1.2231,246.69,246.5,1.0]
[1737669521571,23.776884,246.74,246.51,23.776884]
[1737669521778,12.19,246.71,246.51,23.776884]
[1737669521980,32.19,246.68,246.49,6.3901]
[1737669522549,32.19,246.68,246.5,23.776884]
[1737669524051,0.03,246.69,246.5,23.776884]
[1737669524469,32.19,246.68,246.5,23.776884]
[1737669525384,12.22,246.69,246.5,23.776884]
[1737669525563,20.0,246.66,246.5,23.776884]
[1737669527789,20.0,246.66,246.51,1.0]
[1737669529091,20.0,246.68,246.51,1.0]
[1737669530786,32.19,246.63,246.49,6.3901]
[1737669531179,12.19,246.65,246.49,6.3901]
[1737669531474,20.0,246.62,246.5,23.776884]
[1737669532191,20.0,246.63,246.5,23.776884]
[1737669532391,20.0,246.63,246.53,23.776884]
[1737669532560,0.03,246.69,246.55,23.776884]
[1737669532763,20.03,246.69,246.55,23.776884]
[1737669533264,20.0,246.65,246.54,1.5571]
[1737669533961,20.0,246.64,246.54,1.5571]
[1737669534792,12.22,246.69,246.54,1.5571]
[1737669534998,12.22,246.69,246.55,23.776884]
[1737669535297,20.03,246.69,246.55,23.776884]
[1737669535593,0.03,246.69,246.59,6.1296]
[1737669535794,0.03,246.69,246.6,23.736397]
[1737669537665,0.03,246.69,246.65,23.776884]
[1737669538066,0.03,246.69,246.63,2.6113]
[1737669538267,0.03,246.69,246.63,1.6113]
[1737669538576,20.03,246.69,246.63,1.6113]
[1737669539701,20.03,246.69,246.65,0.053933]
[1737669541290,19.2813049,246.69,246.65,0.053933]
[1737669543066,23.776884,246.71,246.65,0.053933]
[1737669543385,20.0,246.68,246.65,0.053933]
[1737669545269,20.0,246.61,246.44,8.3664]
[1737669545480,20.0,246.59,246.44,8.3664]
[1737669546495,20.0,246.55,246.44,6.7028]
[1737669547089,23.776884,246.61,246.44,6.7028]
[1737669547308,20.0,246.55,246.44,6.7028]
[1737669548018,20.0,246.51,246.44,6.7028]
[1737669548381,32.19,246.51,246.31,20.01146143]
[1737669549085,32.19,246.51,246.32,23.776884]
[1737669549290,32.19,246.51,246.34,23.776884]
[1737669549600,32.19,246.51,246.31,20.15858129]
[1737669550082,23.776884,246.52,246.34,23.776884]
[1737669550282,12.19,246.51,246.34,23.776884]
[1737669550485,30.0,246.7,246.34,24.776884]
[1737669550800,11.54272301,246.67,246.35,1.0]
[1737669551109,23.776884,246.66,246.35,1.0]
[1737669551330,23.776884,246.66,246.33,28.34626352]
[1737669551331,12.19,246.63,246.34,23.776884]
[1737669551479,12.19,246.61,246.34,23.776884]
[1737669551806,4.06,246.56,246.33,28.34626352]
[1737669551986,12.19,246.53,246.33,28.34626352]
[1737669552182,20.0,246.46,246.33,28.34626352]
[1737669554493,20.0,246.5,246.33,28.34626352]
[1737669554812,20.0,246.46,246.33,28.34626352]
[1737669555515,32.19,246.41,246.33,28.34626352]
[1737669555810,32.19,246.41,246.33,20.49436352]
[1737669556107,32.19,246.41,246.31,20.15858129]
[1737669557986,32.19,246.52,246.31,20.15858129]
[1737669558401,32.19,246.47,246.31,20.15858129]
[1737669559307,12.19,246.43,246.31,20.15858129]
[1737669559502,20.0,246.4,246.31,20.15858129]
[1737669559814,32.19,246.4,246.31,20.22158129]
[1737669560222,23.776884,246.42,246.31,20.22158129]
[1737669560396,12.19,246.43,246.31,20.22158129]
[1737669560590,12.19,246.41,246.31,20.22158129]
[1737669560903,12.19,246.39,246.31,20.22158129]
[1737669561720,12.19,246.4,246.31,20.22158129]
[1737669562015,12.19,246.38,246.31,20.22158129]
[1737669562927,4.06,246.42,246.31,20.22158129]
[1737669562928,35.966884,246.41,246.31,20.22158129]
[1737669563124,12.19,246.39,246.31,20.22158129]
[1737669564039,12.19,246.45,246.31,20.22158129]
[1737669564327,12.19,246.43,246.31,20.22158129]
[1737669564627,32.19,246.4,246.31,20.22158129]
[1737669566306,12.19,246.45,246.31,20.22158129]
[1737669567327,55.966884,246.47,246.31,20.22158129]
[1737669570242,80.306884,246.47,246.31,20.22158129]
[1737669570736,23.776884,246.36,246.31,20.22158129]
[1737669571033,4.06,246.38,246.31,20.22158129]
[1737669571249,4.06,246.38,246.32,20.77366227]
[1737669571736,1.5178,246.43,246.32,20.77366227]
[1737669571935,12.19,246.42,246.32,20.77366227]
[1737669572304,36.53,246.42,246.32,20.77366227]
[1737669573040,32.19,246.38,246.32,20.77366227]
[1737669574931,24.34,246.36,246.32,20.77366227]
[1737669575230,158.876884,246.37,246.32,20.77366227]
[1737669576129,135.1,246.36,246.32,20.77366227]
[1737669576334,24.34,246.4,246.3,0.063]
[1737669576722,25.8578,246.43,246.3,0.063]
[1737669576906,24.34,246.41,246.3,0.063]
[1737669577310,6.94,246.42,246.3,0.063]
[1737669577311,12.19,246.32,246.3,0.063]
[1737669578443,12.19,246.31,246.3,0.063]
[1737669579549,12.19,246.36,246.3,0.063]
[1737669580546,32.19,246.31,246.3,0.063]
[1737669580747,80.306884,246.31,246.3,0.063]
[1737669580947,112.55950262,246.31,246.3,0.063]